bitfinex/quotes_BTCUSD_20250303
["timestamp","ask_amount","ask_price","bid_price","bid_amount"]
[1741034731937,3.8e-07,85832.0,85830.0,0.233018]
[1741034732139,0.00203841,85875.0,85823.0,0.233036]
[1741034732140,0.02848852,85880.0,85871.0,0.00343264]
[1741034732335,0.0786,85902.0,85874.0,0.00343264]
[1741034732581,0.00039743,85902.0,85885.0,0.232869]
[1741034732782,0.00039743,85902.0,85886.0,0.33792658]
[1741034732983,0.00039743,85902.0,85896.0,0.232837]
[1741034733304,0.00039743,85902.0,85891.0,0.1]
[1741034733506,0.232826,85901.0,85886.0,0.00343264]
[1741034733722,0.00039743,85902.0,85890.0,0.00343264]
[1741034733927,0.0792,85935.0,85898.0,0.00343264]
[1741034734138,0.232796,85913.0,85898.0,0.00343264]
[1741034734337,0.232796,85913.0,85892.0,0.53285]
[1741034734338,0.05737677,85928.0,85893.0,0.00506231]
[1741034734511,0.05737677,85928.0,85890.0,0.00343264]
[1741034734714,0.232797,85912.0,85893.0,0.00343264]
[1741034734916,0.05737677,85928.0,85897.0,0.00343264]
[1741034735078,0.05737677,85928.0,85895.0,0.00343264]
[1741034735284,0.04844312,85928.0,85897.0,0.00343264]
[1741034735489,0.23278,85918.0,85898.0,0.00162961]
[1741034735709,0.232758,85926.0,85899.0,0.1]
[1741034735914,0.04844312,85928.0,85898.0,0.00162933]
[1741034736201,0.04844312,85928.0,85897.0,0.00343264]
[1741034736377,0.04844312,85928.0,85893.0,0.00343264]
[1741034736378,0.3,85926.0,85893.0,0.00343264]
[1741034736580,0.3,85926.0,85896.0,0.232839]
[1741034736581,0.232779,85919.0,85896.0,0.232839]
[1741034736797,0.232755,85927.0,85897.0,0.10506231]
[1741034736997,0.04844312,85928.0,85902.0,0.1]
[1741034737201,0.04844312,85928.0,85897.0,0.10143264]
[1741034737409,0.232801,85910.0,85893.0,0.00343264]
[1741034737612,0.04844312,85928.0,85895.0,0.00343264]
[1741034737613,0.232806,85909.0,85895.0,0.00343264]
[1741034737822,0.04844312,85928.0,85883.0,0.00343264]
[1741034737823,0.002,85925.0,85883.0,0.00343264]
[1741034738032,0.232865,85887.0,85871.0,0.00343264]
[1741034738234,0.232801,85910.0,85864.0,0.00343264]
[1741034738442,0.232851,85892.0,85874.0,0.098]
[1741034738650,0.3,85909.0,85875.0,0.00162998]
[1741034738850,0.232849,85893.0,85870.0,0.00343264]
[1741034739057,0.0086871,85920.0,85881.0,0.00343264]
[1741034739263,0.3,85919.0,85879.0,0.00343264]
[1741034739472,0.232843,85895.0,85883.0,0.00343264]
[1741034739674,0.00011917,85912.0,85877.0,0.3]
[1741034739877,0.41540535,85910.0,85863.0,0.00343264]
[1741034740132,0.0825,85899.0,85862.0,0.098]
[1741034740337,0.0825,85899.0,85871.0,0.00343264]
[1741034740557,0.0825,85899.0,85867.0,0.00343264]
[1741034740759,0.232878,85882.0,85867.0,0.00343264]
[1741034740960,0.232862,85888.0,85867.0,0.00343264]
[1741034741187,0.3,85897.0,85856.0,0.00343264]
[1741034741396,0.232917,85868.0,85850.0,0.00163025]
[1741034741601,0.232928,85864.0,85849.0,0.00343264]
[1741034741756,0.232928,85864.0,85847.0,0.00343264]
[1741034741962,0.002,85883.0,85840.0,0.01068362]
[1741034742142,0.232979,85845.0,85832.0,0.00066625]
[1741034742342,0.23301,85833.0,85832.0,0.00066625]
[1741034742545,0.3,85859.0,85832.0,0.00066625]
[1741034742746,0.3,85854.0,85832.0,0.00066625]
[1741034742946,0.02895667,85854.0,85832.0,0.00066625]
[1741034743160,0.081,85878.0,85834.0,0.098]
[1741034743362,0.081,85878.0,85832.0,0.00229705]
[1741034743669,0.23301,85833.0,85832.0,0.00066625]
[1741034743895,0.233008,85834.0,85832.0,0.00066625]
[1741034744066,0.3,85869.0,85832.0,0.00066625]
[1741034744067,0.23301,85833.0,85832.0,0.00066625]
[1741034744270,0.2621678,85833.0,85832.0,0.00066625]
[1741034744476,0.27108827,85833.0,85832.0,2.5e-07]
[1741034744914,0.03807827,85833.0,85832.0,2.5e-07]
[1741034745115,0.0291578,85833.0,85832.0,6.025e-05]
[1741034745326,0.00861187,85840.0,85832.0,6.025e-05]
[1741034745521,0.00861187,85840.0,85839.0,0.632994]
[1741034745720,0.0488,85886.0,85844.0,0.1]
[1741034745898,0.07819915,85886.0,85848.0,0.1]
[1741034746100,0.07819915,85886.0,85853.0,0.3]
[1741034746304,0.232932,85862.0,85853.0,0.3]
[1741034746507,0.41540535,85880.0,85853.0,0.3]
[1741034746713,0.232944,85858.0,85853.0,0.3]
[1741034746913,0.41540535,85880.0,85853.0,0.3]
[1741034747117,0.07819915,85886.0,85856.0,0.28699998]
[1741034747322,0.232869,85885.0,85856.0,0.28699998]
[1741034747550,0.08699337,85886.0,85856.0,0.28699998]
[1741034747758,0.232906,85872.0,85856.0,0.28699998]
[1741034747982,0.232894,85876.0,85856.0,0.28699998]
[1741034748157,0.232916,85868.0,85850.0,0.1]
[1741034748359,0.02939915,85886.0,85848.0,0.1]
[1741034748719,0.232945,85857.0,85846.0,0.1]
[1741034748920,0.03807944,85899.0,85853.0,0.1]
[1741034749122,0.03807944,85899.0,85848.0,0.1]
[1741034749123,0.23289,85878.0,85858.0,0.23294]
[1741034749406,0.23289,85878.0,85863.0,0.3]
[1741034749544,0.0280738,85899.0,85863.0,0.3]
[1741034749935,0.349327,85880.0,85844.0,0.1]
[1741034750082,0.349327,85880.0,85835.0,0.1]
[1741034750083,0.41540535,85880.0,85838.0,0.1]
[1741034750286,0.41540535,85870.0,85832.0,6.025e-05]
[1741034750485,0.349328,85879.0,85838.0,0.1]
[1741034750690,0.41540535,85880.0,85832.0,6.025e-05]
[1741034750889,0.41540535,85870.0,85832.0,6.025e-05]
[1741034751051,0.349401,85862.0,85832.0,6.025e-05]
[1741034751271,0.41540535,85870.0,85832.0,6.025e-05]
[1741034751479,0.233009,85834.0,85832.0,6.025e-05]
[1741034751720,0.41540535,85850.0,85832.0,6.025e-05]
[1741034751893,0.233003,85836.0,85832.0,6.025e-05]
[1741034752104,0.15828,85869.0,85832.0,6.025e-05]
[1741034752444,0.00888356,85870.0,85836.0,0.1]
[1741034752649,0.232923,85866.0,85847.0,0.23297]
[1741034752860,0.232923,85866.0,85842.0,0.1]
[1741034752861,0.232926,85865.0,85845.0,0.232977]
[1741034753149,0.232927,85864.0,85845.0,0.232977]
[1741034753348,0.02878096,85869.0,85844.0,0.3]
[1741034753562,0.232922,85866.0,85844.0,0.3]
[1741034753771,0.232922,85866.0,85832.0,0.00039885]
[1741034753772,0.00011908,85870.0,85837.0,0.1]
[1741034753961,0.232963,85851.0,85832.0,0.00039885]
[1741034754174,0.0285867,85870.0,85837.0,0.332998]
[1741034754375,0.232924,85865.0,85837.0,0.1]
[1741034754665,0.0285867,85870.0,85833.0,0.4]
[1741034754839,0.349369,85869.0,85833.0,0.3]
[1741034755074,0.3,85869.0,85832.0,0.00039885]
[1741034755247,0.23301,85833.0,85832.0,0.00039885]
[1741034756455,0.53301,85833.0,85832.0,0.00039885]
[1741034756702,0.54161992,85833.0,85832.0,0.00079628]
[1741034756942,0.24161992,85833.0,85832.0,0.00079628]
[1741034757201,0.29179672,85859.0,85820.0,0.1]
[1741034757456,0.00011909,85841.0,85827.0,0.1]
[1741034757699,0.00011909,85841.0,85829.0,0.1]
[1741034758640,0.00011909,85841.0,85824.0,0.333034]
[1741034758877,0.00011909,85841.0,85824.0,0.1]
[1741034759121,0.23310909,85841.0,85824.0,0.1]
[1741034759369,0.00011909,85841.0,85819.0,0.1]
[1741034759609,0.00011909,85841.0,85814.0,0.01555]
[1741034760056,0.233054,85817.0,85814.0,0.01555]
[1741034760305,0.233059,85815.0,85814.0,0.01555]
[1741034760539,0.00011909,85841.0,85814.0,0.01555]
[1741034760779,0.30077595,85868.0,85840.0,0.232989]
[1741034761016,0.30077595,85868.0,85814.0,0.01555]
[1741034761017,0.232925,85865.0,85843.0,0.1]
[1741034761253,0.232931,85863.0,85843.0,0.1]
[1741034761485,0.232962,85851.0,85837.0,0.1]
[1741034761721,0.02906121,85865.0,85836.0,0.0783]
[1741034761944,0.232952,85855.0,85837.0,0.1]
[1741034762171,0.02906121,85865.0,85843.0,0.08]
[1741034762398,0.02906121,85865.0,85836.0,0.0783]
[1741034762399,0.02906121,85865.0,85852.0,0.08]
[1741034762633,0.02906121,85865.0,85852.0,0.232958]
[1741034762891,0.00011913,85865.0,85860.0,0.18]
[1741034763125,0.00011913,85865.0,85858.0,0.1]
[1741034763359,0.00011913,85865.0,85825.0,0.1]
[1741034763575,0.00011913,85865.0,85835.0,0.1]
[1741034763829,0.00011913,85865.0,85862.0,0.08]
[1741034764070,0.00011913,85865.0,85850.0,0.1]
[1741034764316,0.00887917,85865.0,85835.0,0.00897147]
[1741034764550,0.233002,85836.0,85835.0,0.00897147]
[1741034764774,0.3,85849.0,85819.0,0.1]
[1741034765018,0.233042,85822.0,85816.0,0.01085113]
[1741034765272,0.233034,85825.0,85816.0,0.01085113]
[1741034765558,0.23305,85819.0,85816.0,0.01085113]
[1741034765799,0.233054,85817.0,85816.0,0.01085113]
[1741034765994,0.233102,85799.0,85798.0,2e-07]
[1741034766199,0.533102,85799.0,85798.0,0.00011937]
[1741034766404,0.533102,85799.0,85798.0,3.7e-07]
[1741034766609,0.233102,85799.0,85798.0,3.7e-07]
[1741034767083,0.0088118,85823.0,85798.0,3.7e-07]
[1741034767288,0.32828978,85836.0,85799.0,0.08]
[1741034767461,0.233078,85808.0,85798.0,3.7e-07]
[1741034767790,0.33542115,85836.0,85799.0,0.08]
[1741034767992,0.33542115,85836.0,85822.0,0.1]
[1741034767993,0.03542115,85836.0,85822.0,0.1]
[1741034768220,0.0465,85867.0,85822.0,0.1]
[1741034768221,0.41540535,85870.0,85828.0,0.1]
[1741034768423,0.03521632,85864.0,85828.0,0.1]
[1741034768579,0.02,85868.0,85828.0,0.1]
[1741034768777,0.232976,85846.0,85830.0,0.08]
[1741034768999,0.232967,85849.0,85830.0,0.08]
[1741034769263,0.03621891,85864.0,85824.0,0.1]
[1741034769433,0.00011913,85849.0,85828.0,0.08]
[1741034769653,0.00011913,85849.0,85832.0,0.08]
[1741034769849,0.00011913,85849.0,85840.0,0.23299]
[1741034770085,0.00011913,85849.0,85835.0,0.233003]
[1741034770346,0.00011913,85849.0,85843.0,0.232981]
[1741034770527,0.00011913,85849.0,85848.0,0.412969]
[1741034770766,0.00011913,85849.0,85848.0,0.18]
[1741034770976,0.00011913,85849.0,85848.0,0.412969]
[1741034771592,0.00011913,85849.0,85848.0,0.712969]
[1741034771799,0.00011913,85849.0,85848.0,0.08]
[1741034771975,0.00011913,85849.0,85846.0,0.1]
[1741034772243,0.00011913,85849.0,85848.0,0.38396899]
[1741034773118,0.00011913,85849.0,85848.0,0.15099999]
[1741034773351,0.00011913,85849.0,85848.0,0.1]
[1741034773561,0.00011913,85849.0,85823.0,0.349553]
[1741034773562,0.00011913,85849.0,85831.0,0.1]
[1741034773739,0.232977,85846.0,85829.0,0.05099999]
[1741034773935,0.00011913,85849.0,85838.0,0.05099999]
[1741034774139,0.00011913,85849.0,85843.0,0.05099999]
[1741034774339,0.00011913,85849.0,85824.0,0.0751]
[1741034774340,0.00011913,85849.0,85848.0,0.05099999]
[1741034774757,0.00011913,85849.0,85848.0,0.1]
[1741034774964,0.00011913,85849.0,85840.0,0.15099999]
[1741034775177,0.00011913,85849.0,85834.0,0.1]
[1741034775385,0.00011913,85849.0,85829.0,0.1]
[1741034775598,0.00011913,85849.0,85832.0,0.1]
[1741034775821,0.232969,85848.0,85828.0,0.1]
[1741034776024,0.233032,85825.0,85819.0,0.20292267]
[1741034776233,0.00011913,85849.0,85819.0,0.10292267]
[1741034776439,0.233045,85820.0,85819.0,0.10292267]
[1741034777065,0.41540535,85850.0,85819.0,0.07692266]
[1741034777212,0.233045,85820.0,85819.0,0.07692266]
[1741034777427,0.233022,85829.0,85803.0,0.05099999]
[1741034777428,0.3,85829.0,85803.0,0.05099999]
[1741034777609,0.233027,85827.0,85805.0,0.05099999]
[1741034777816,0.24163562,85842.0,85820.0,0.05099999]
[1741034778220,0.233055,85817.0,85813.0,0.1]
[1741034778420,0.00011909,85829.0,85814.0,0.05099999]
[1741034778638,0.00011909,85829.0,85813.0,0.333064]
[1741034778639,0.23314009,85829.0,85813.0,0.1]
[1741034778764,0.00011909,85829.0,85814.0,0.05099999]
[1741034778966,0.00011909,85829.0,85828.0,0.05099999]
[1741034779193,0.00011909,85829.0,85828.0,0.46715504]
[1741034779392,0.00011909,85829.0,85828.0,0.46552399]
[1741034779931,0.00011909,85829.0,85828.0,0.76552399]
[1741034780132,0.03671853,85861.0,85855.0,0.28394799]
[1741034780347,0.03683762,85861.0,85857.0,0.05099999]
[1741034780837,0.03683762,85861.0,85840.0,0.3]
[1741034780838,0.00011909,85861.0,85860.0,0.05099999]
[1741034781152,0.00011909,85861.0,85860.0,0.28556742]
[1741034781286,0.00011909,85861.0,85860.0,0.15099999]
[1741034781687,0.00011909,85861.0,85860.0,0.38393699]
[1741034782119,0.00011909,85861.0,85860.0,0.43463698]
[1741034782527,0.00011909,85861.0,85860.0,0.73463698]
[1741034782732,0.0001692,85916.0,85864.0,0.65492598]
[1741034782733,0.232798,85912.0,85864.0,0.65492598]
[1741034782932,0.05084851,85902.0,85864.0,1.40386029]
[1741034783275,0.05084851,85902.0,85885.0,0.43336898]
[1741034783276,0.015549,85902.0,85885.0,0.43336898]
[1741034783480,0.015549,85902.0,85885.0,1.48230329]
[1741034783780,0.015549,85902.0,85901.0,0.65482598]
[1741034783988,0.01594611,85902.0,85901.0,0.70392598]
[1741034784186,0.0001692,85916.0,85901.0,0.70392598]
[1741034784187,0.0001692,85916.0,85915.0,0.65478798]
[1741034784533,2.6e-07,85916.0,85915.0,1.40372229]
[1741034784759,0.015549,85920.0,85919.0,0.65477698]
[1741034785199,0.10269481,85943.0,85927.0,0.632755]
[1741034785412,0.10269481,85943.0,85927.0,1.19505498]
[1741034785610,0.10269481,85943.0,85927.0,1.43155663]
[1741034785911,0.10269481,85943.0,85927.0,1.17093429]
[1741034786145,0.10269481,85943.0,85927.0,1.38168931]
[1741034786366,0.10269481,85943.0,85927.0,0.12199998]
[1741034786584,0.232717,85942.0,85929.0,0.02199998]
[1741034786739,0.232725,85939.0,85929.0,0.1]
[1741034786936,0.10269481,85943.0,85929.0,0.1]
[1741034787155,0.10269481,85943.0,85894.0,0.5403]
[1741034787352,0.02433151,85955.0,85917.0,0.1]
[1741034787620,0.232709,85945.0,85926.0,0.1]
[1741034787816,0.02433151,85955.0,85917.0,0.1]
[1741034787946,0.232767,85923.0,85912.0,0.1]
[1741034788139,0.23266882,85923.0,85912.0,0.1]
[1741034788343,0.07800002,85945.0,85907.0,0.00011906]
[1741034788565,0.0086765,85939.0,85911.0,0.02199998]
[1741034788768,0.232778,85919.0,85910.0,0.1]
[1741034788970,0.05637514,85932.0,85910.0,0.1]
[1741034789171,0.23277,85922.0,85911.0,0.02199998]
[1741034789425,0.05314534,85932.0,85907.0,0.00011906]
[1741034789578,0.05314534,85932.0,85907.0,0.02211904]
[1741034789788,0.05314534,85932.0,85907.0,0.00011906]
[1741034789989,0.232807,85908.0,85907.0,0.00011906]
[1741034790407,0.3,85928.0,85907.0,0.00011906]
[1741034790408,0.232791,85914.0,85907.0,0.00011906]
[1741034790663,0.0001694,85928.0,85907.0,0.00011906]
[1741034791477,0.232776,85920.0,85907.0,0.00011906]
[1741034791676,0.232764,85924.0,85907.0,0.00011906]
[1741034791930,0.232766,85923.0,85911.0,0.02199998]
[1741034792169,0.232772,85921.0,85907.0,0.09811904]
[1741034792376,0.0001694,85928.0,85907.0,0.09811904]
[1741034792547,0.0001694,85928.0,85917.0,0.09811904]
[1741034792689,0.00028835,85928.0,85917.0,0.09811904]
[1741034792921,0.00028835,85928.0,85893.0,0.5403]
[1741034792922,0.232818,85904.0,85899.0,0.09811904]
[1741034793126,0.232818,85904.0,85890.0,0.0758]
[1741034793127,0.00028835,85928.0,85909.0,0.232801]
[1741034793327,0.00028835,85928.0,85905.0,0.09811904]
[1741034793960,0.232777,85919.0,85905.0,0.09811904]
[1741034794158,0.00028835,85928.0,85905.0,0.09811904]
[1741034794304,0.00028835,85928.0,85922.0,0.09811904]
[1741034794506,0.00028835,85928.0,85920.0,0.232772]
[1741034794507,0.00028835,85928.0,85927.0,0.33087404]
[1741034794708,0.00028835,85928.0,85927.0,0.09811904]
[1741034795251,0.00028835,85928.0,85923.0,0.09811904]
[1741034795393,0.00028835,85928.0,85927.0,0.33087404]
[1741034796253,0.00028835,85928.0,85927.0,0.09811904]
[1741034796404,0.00028835,85928.0,85927.0,0.33250301]
[1741034796609,0.00028835,85928.0,85927.0,0.33087404]
[1741034796837,0.00028835,85928.0,85927.0,1.37980835]
[1741034797005,0.0001695,85988.0,85950.0,0.63081204]
[1741034797255,3e-07,85955.0,85954.0,0.33080104]
[1741034797463,3e-07,85955.0,85954.0,0.09811904]
[1741034797666,0.00011927,85955.0,85954.0,0.09811904]
[1741034798080,0.00011927,85955.0,85954.0,0.0997477]
[1741034798277,0.00011927,85955.0,85954.0,0.3324297]
[1741034798541,0.00011927,85955.0,85954.0,0.33080104]
[1741034799432,0.15142473,86020.0,85979.0,0.232612]
[1741034799634,0.00039672,85998.0,85985.0,0.09811904]
[1741034799834,0.00039672,85998.0,85973.0,0.09811904]
[1741034800156,0.00039672,85998.0,85967.0,0.09811904]
[1741034800371,0.00039672,85998.0,85959.0,0.09811904]
[1741034800580,0.00039672,85998.0,85963.0,0.09811904]
[1741034800891,0.23266,85963.0,85960.0,0.09811904]
[1741034801089,0.00039672,85998.0,85960.0,0.09811904]
[1741034801090,0.232619,85978.0,85960.0,0.09811904]
[1741034801292,0.3,85997.0,85960.0,0.09811904]
[1741034801503,0.232639,85971.0,85960.0,0.09811904]
[1741034801655,0.232628,85974.0,85952.0,0.09811904]
[1741034801857,0.232692,85951.0,85944.0,0.09811904]
[1741034802229,0.0001692,85951.0,85931.0,0.06911903]
[1741034802427,0.0001692,85951.0,85938.0,0.06911903]
[1741034802627,0.03618701,85951.0,85938.0,0.06911903]
[1741034802835,0.03618701,85951.0,85942.0,0.06911903]
[1741034802987,0.0001692,85951.0,85947.0,0.06911903]
[1741034803475,0.0001692,85951.0,85929.0,0.0494]
[1741034803476,0.0001692,85951.0,85942.0,0.069238]
[1741034803689,0.0001692,85951.0,85942.0,0.00011897]
[1741034803915,0.03534038,85951.0,85950.0,0.06911903]
[1741034804449,0.03534038,85951.0,85950.0,0.60181203]
[1741034804679,0.0001692,85951.0,85950.0,1.22421203]
[1741034804930,2e-07,85951.0,85950.0,1.5176377]
[1741034805327,2e-07,85951.0,85950.0,0.9773377]
[1741034805637,0.348778,86015.0,85983.0,0.06911903]
[1741034805842,0.00896681,86017.0,85983.0,0.06911903]
[1741034806074,0.015549,86025.0,85983.0,0.06911903]
[1741034806075,0.03532544,86015.0,85983.0,0.06911903]
[1741034806259,0.292853,86021.0,85985.0,0.06911903]
[1741034806412,0.015549,86025.0,85993.0,0.06911903]
[1741034806413,0.232528,86012.0,85993.0,0.06911903]
[1741034806613,0.02409629,86025.0,85992.0,0.06911903]
[1741034806817,0.3,86019.0,85991.0,0.06911903]
[1741034807240,0.03542589,86019.0,85991.0,0.04511903]
[1741034807454,0.232538,86008.0,85995.0,0.04511903]
[1741034807667,0.232543,86006.0,85995.0,0.04511903]
[1741034807858,0.232529,86011.0,85995.0,0.04511903]
[1741034808058,0.03500993,86019.0,86001.0,0.04511903]
[1741034808261,0.232508,86019.0,86002.0,0.232552]
[1741034808434,0.01594596,86025.0,86009.0,0.04511903]
[1741034808435,0.232493,86024.0,86009.0,0.04511903]
[1741034808642,0.01594596,86025.0,86009.0,0.04511903]
[1741034808643,0.232513,86017.0,86009.0,0.04511903]
[1741034808843,0.232513,86017.0,85994.0,0.232574]
[1741034808844,0.232552,86002.0,86001.0,0.04511903]
[1741034809045,0.232539,86008.0,85995.0,0.04511903]
[1741034809251,0.03554799,86019.0,85992.0,0.04511903]
[1741034809519,0.3,86009.0,85978.0,0.04511903]
[1741034809718,0.232593,85987.0,85977.0,0.04511903]
[1741034809940,0.232593,85987.0,85979.0,0.04511903]
[1741034810149,0.3,85999.0,85969.0,0.04511903]
[1741034810404,0.30896594,86009.0,85966.0,0.04511903]
[1741034810637,0.3,85999.0,85960.0,0.0766]
[1741034810842,0.3,85999.0,85962.0,0.04511903]
[1741034811042,0.3,85989.0,85961.0,0.04511903]
[1741034811245,0.3,85989.0,85947.0,0.127]
[1741034811246,0.232615,85979.0,85962.0,0.04511903]
[1741034811466,0.232671,85958.0,85957.0,0.04511903]
[1741034811672,0.232654,85965.0,85951.0,0.04511903]
[1741034811877,0.348885,85988.0,85951.0,0.04511903]
[1741034812153,0.41540535,86000.0,85947.0,0.0816]
[1741034812154,0.2326,85985.0,85966.0,0.232647]
[1741034812384,0.232586,85990.0,85966.0,0.23265]
[1741034812590,0.00011895,85985.0,85968.0,0.04511903]
[1741034812810,0.00011895,85985.0,85969.0,0.04511903]
[1741034813013,0.232666,85960.0,85956.0,0.04511903]
[1741034813193,0.232618,85978.0,85964.0,0.04511903]
[1741034813398,0.232651,85966.0,85964.0,0.04511903]
[1741034813717,0.00011895,85985.0,85964.0,0.04511903]
[1741034813935,0.00011895,85985.0,85958.0,0.04511903]
[1741034814136,0.23265,85966.0,85958.0,0.04511903]
[1741034814497,0.232656,85964.0,85958.0,0.04511903]
[1741034814694,0.00011895,85985.0,85959.0,0.04511903]
[1741034814913,0.232635,85972.0,85964.0,0.04511903]
[1741034815142,0.00011895,85985.0,85953.0,0.04511903]
[1741034815350,0.00866278,85985.0,85951.0,0.04511903]
[1741034815524,0.232662,85962.0,85955.0,0.04511903]
[1741034815687,0.00011895,85985.0,85955.0,0.04511903]
[1741034815893,0.00011895,85985.0,85972.0,0.232632]
[1741034816116,0.00011895,85985.0,85950.0,0.0003392]
[1741034816117,0.00011895,85985.0,85979.0,0.04511903]
[1741034816338,0.00011895,85985.0,85984.0,0.04511903]
[1741034817115,0.00011895,85985.0,85984.0,0.01611902]
[1741034817364,0.00011895,85985.0,85984.0,0.25034812]
[1741034817580,0.00011895,85985.0,85984.0,0.24872002]
[1741034817999,0.00011895,85985.0,85984.0,0.54872002]
[1741034818359,0.03518656,86019.0,86004.0,0.24866602]
[1741034818555,0.000566,86005.0,86004.0,0.24866602]
[1741034818755,0.22067557,86027.0,86004.0,0.24866602]
[1741034818966,0.232496,86023.0,86014.0,0.01611902]
[1741034819158,0.03648226,86027.0,86016.0,0.01611902]
[1741034819383,0.00011887,86027.0,86025.0,0.01611902]
[1741034819557,0.00011887,86027.0,86026.0,0.01611902]
[1741034819764,0.00011887,86027.0,86026.0,0.24860602]
[1741034819970,0.00011887,86027.0,86026.0,0.01611902]
[1741034820166,0.00011887,86027.0,86026.0,0.25023313]
[1741034820466,0.00011887,86027.0,86026.0,0.24860602]
[1741034820692,0.00011887,86027.0,86026.0,0.54860602]
[1741034821038,0.09423821,86081.0,86027.0,0.3]
[1741034821168,0.41540535,86060.0,86033.0,0.01611902]
[1741034821379,0.12833129,86081.0,86036.0,0.01611902]
[1741034821380,0.3,86057.0,86036.0,0.01611902]
[1741034821577,0.232436,86046.0,86032.0,0.01611902]
[1741034821778,0.03508969,86057.0,86025.0,4e-05]
[1741034821779,0.03508969,86057.0,86036.0,0.01611902]
[1741034822001,0.41540535,86080.0,86036.0,0.01611902]
[1741034822199,0.03635622,86069.0,86025.0,4e-05]
[1741034822399,0.00894435,86081.0,86027.0,0.3]
[1741034822654,0.0001691,86084.0,86028.0,0.00162689]
[1741034822853,0.41540535,86070.0,86032.0,4e-05]
[1741034823007,0.232463,86036.0,86032.0,4e-05]
[1741034823207,0.03527626,86040.0,86032.0,4e-05]
[1741034823481,0.232415,86053.0,86032.0,4e-05]
[1741034823675,0.3,86068.0,86032.0,4e-05]
[1741034823896,0.03663163,86053.0,86032.0,0.00166706]
[1741034824004,0.23238,86066.0,86045.0,0.232435]
[1741034824204,0.3,86080.0,86032.0,4e-05]
[1741034824600,0.00011883,86053.0,86032.0,4e-05]
[1741034824800,0.00011883,86053.0,86032.0,8e-05]
[1741034825210,0.00011883,86053.0,86052.0,0.232417]
[1741034825415,0.00011883,86053.0,86052.0,1.36145131]
[1741034825616,0.0001691,86084.0,86083.0,0.232333]
[1741034825769,0.0001691,86084.0,86066.0,0.3]
[1741034826115,0.00028791,86084.0,86065.0,0.20863431]
[1741034826250,0.232344,86080.0,86053.0,0.20863431]
[1741034826449,0.232344,86080.0,86054.0,0.00162653]
[1741034826450,0.232342,86080.0,86054.0,0.00162653]
[1741034826674,0.232366,86072.0,86053.0,0.20863431]
[1741034826878,0.00028791,86084.0,86052.0,0.1251]
[1741034827134,0.232384,86065.0,86052.0,0.1251]
[1741034827306,0.00028791,86084.0,86066.0,0.007]
[1741034827531,0.232373,86069.0,86066.0,0.007]
[1741034827723,0.00028791,86084.0,86061.0,0.23239]
[1741034827929,0.00028791,86084.0,86072.0,0.232361]
[1741034828083,0.00028791,86084.0,86070.0,0.0472]
[1741034828517,0.00028791,86084.0,86070.0,0.25746068]
[1741034828720,0.00028791,86084.0,86083.0,0.232333]
[1741034828974,0.00028791,86084.0,86083.0,0.309133]
[1741034829537,0.00028791,86084.0,86083.0,0.28543431]
[1741034829735,0.00028791,86084.0,86083.0,0.0758]
[1741034829960,0.00028791,86084.0,86083.0,0.51839344]
[1741034830160,0.00028791,86084.0,86083.0,1.35706731]
[1741034830539,0.00128791,86084.0,86083.0,1.36406731]
[1741034830943,0.0129893,86090.0,86089.0,0.532317]
[1741034831144,0.0129893,86090.0,86089.0,1.28125131]
[1741034831747,0.0129893,86090.0,86089.0,0.74893431]
[1741034832271,0.0129893,86090.0,86089.0,0.98125131]
[1741034833027,0.0129893,86090.0,86089.0,0.74893431]
[1741034833771,0.0129893,86090.0,86089.0,0.75593431]
[1741034834135,0.2453043,86090.0,86089.0,0.20867431]
[1741034834523,0.2453043,86090.0,86089.0,0.21567431]
[1741034834743,0.0129893,86090.0,86089.0,0.21567431]
[1741034835478,0.2453043,86090.0,86089.0,0.21567431]
[1741034835688,0.0129893,86090.0,86089.0,0.21567431]
[1741034835893,0.41540535,86130.0,86089.0,0.20867431]
[1741034836062,0.0455807,86114.0,86089.0,0.20867431]
[1741034836257,0.232258,86111.0,86090.0,0.00162603]
[1741034836470,0.00039593,86112.0,86089.0,0.44735592]
[1741034836678,0.00039593,86112.0,86090.0,0.00162587]
[1741034836880,0.00039593,86112.0,86089.0,0.20804092]
[1741034837081,0.232315,86090.0,86089.0,0.18004091]
[1741034837286,0.232315,86090.0,86089.0,0.00104]
[1741034837488,0.232382,86065.0,86064.0,0.17900091]
[1741034837705,0.0001697,86140.0,86064.0,0.17900091]
[1741034837706,0.41540535,86130.0,86083.0,0.232332]
[1741034837903,0.29179672,86139.0,86083.0,0.232332]
[1741034837904,0.00162603,86129.0,86090.0,0.00530935]
[1741034838271,0.232272,86106.0,86090.0,0.00530935]
[1741034838463,0.30162603,86129.0,86090.0,0.00530935]
[1741034838464,0.232275,86105.0,86091.0,0.00162605]
[1741034838702,0.015549,86131.0,86097.0,0.232295]
[1741034838943,0.0603987,86131.0,86098.0,0.18062664]
[1741034839161,0.00039593,86114.0,86099.0,0.8403]
[1741034839383,0.00039593,86114.0,86100.0,0.17900091]
[1741034839784,0.00039593,86114.0,86101.0,0.00143811]
[1741034839988,0.00039593,86114.0,86102.0,0.17900091]
[1741034840189,0.00039593,86114.0,86113.0,0.660052]
[1741034840538,0.015549,86131.0,86130.0,0.232207]
[1741034840669,0.015549,86131.0,86128.0,0.23221]
[1741034840866,0.23225,86114.0,86113.0,0.30680091]
[1741034841121,0.23325,86114.0,86113.0,0.17900091]
[1741034841370,0.232282,86102.0,86101.0,0.007]
[1741034841548,0.232258,86111.0,86101.0,0.007]
[1741034841766,0.001,86114.0,86103.0,0.232278]
[1741034841961,0.001,86114.0,86101.0,0.007]
[1741034842382,0.001,86114.0,86099.0,0.07687831]
[1741034842383,0.00203219,86130.0,86099.0,0.07544]
[1741034842619,0.00203219,86130.0,86099.0,4e-05]
[1741034842620,0.232288,86100.0,86099.0,4e-05]
[1741034844197,0.232288,86100.0,86058.0,0.0454]
[1741034844198,0.232398,86059.0,86058.0,0.0454]
[1741034844493,0.232401,86059.0,86050.0,0.034963]
[1741034844718,0.079,86104.0,86058.0,0.00039593]
[1741034844922,0.3,86091.0,86058.0,0.00183621]
[1741034845094,0.0465,86124.0,86070.0,0.232367]
[1741034845292,0.232289,86100.0,86075.0,0.0479]
[1741034845500,0.23226,86111.0,86076.0,0.00143922]
[1741034845770,0.23228,86103.0,86078.0,0.3]